bitfinex-derivatives/quotes_ETHF0:USTF0_20241017
["timestamp","ask_amount","ask_price","bid_price","bid_amount"]
[1729127783782,2.02502,2621.2,2621.1,1.75736068]
[1729127783988,2.02502,2621.2,2621.1,1.32991432]
[1729127784188,2.02502,2621.2,2621.0,0.78474]
[1729127784189,1.6435,2621.2,2621.0,0.78474]
[1729127784389,1.62153,2621.1,2621.0,0.78474]
[1729127785186,1.62153,2621.1,2620.9,3.2078]
[1729127785187,1.24,2621.1,2620.9,3.2078]
[1729127785385,1.62155,2621.0,2620.9,3.2078]
[1729127785688,1.62155,2621.0,2620.7,0.3923]
[1729127785689,4.4478,2621.0,2620.7,1.49930657]
[1729127785895,4.4478,2621.0,2620.7,0.38159]
[1729127785896,1.62158,2620.8,2620.7,0.38159]
[1729127786088,1.24,2620.8,2620.6,1.91720657]
[1729127786284,0.38159,2620.7,2620.6,2.29880657]
[1729127786492,0.38159,2620.7,2620.6,3.62911587]
[1729127787394,0.38159,2620.7,2620.6,3.62917656]
[1729127788500,3.2078,2621.0,2620.6,4.48757656]
[1729127788693,1.62155,2621.0,2620.9,1.62156]
[1729127788896,1.62155,2621.0,2620.9,0.38156]
[1729127789209,1.62155,2621.0,2620.9,0.78806]
[1729127790288,1.62155,2621.0,2620.7,1.49930657]
[1729127790289,0.38158,2620.8,2620.7,1.49930657]
[1729127790592,0.38159,2620.7,2620.6,1.88090657]
[1729127790796,1.62159,2620.7,2620.6,3.21151381]
[1729127790996,1.62159,2620.7,2620.6,1.33060724]
[1729127791195,0.38161,2620.6,2620.5,5.54360657]
[1729127791393,2.03531,2620.6,2620.5,7.37496336]
[1729127791593,2.03531,2620.6,2620.5,5.37479295]
[1729127791801,2.03531,2620.6,2620.5,7.37496336]
[1729127791991,2.03531,2620.6,2620.5,7.37495976]
[1729127792300,0.79531,2620.6,2620.5,11.65711104]
[1729127792498,2.03531,2620.6,2620.5,7.75657976]
[1729127792696,2.03531,2620.6,2620.5,10.41713008]
[1729127793397,1.62161,2620.6,2620.5,10.41684048]
[1729127793797,0.38161,2620.6,2620.5,11.65679134]
[1729127793997,1.45159,2620.8,2620.7,0.38159]
[1729127794194,1.45159,2620.8,2620.7,3.71180403]
[1729127794591,2.69159,2620.8,2620.7,4.10640403]
[1729127794901,2.69159,2620.8,2620.7,2.10667935]
[1729127795102,2.69159,2620.8,2620.7,4.10640403]
[1729127796198,2.69159,2620.8,2620.7,2.10667935]
[1729127796395,1.62159,2620.8,2620.7,2.10667935]
[1729127796888,1.62159,2620.8,2620.7,2.10613456]
[1729127797493,0.38159,2620.8,2620.7,2.10613456]
[1729127797697,4.125,2621.6,2621.3,0.3815]
[1729127797698,0.38151,2621.4,2621.3,0.3815]
[1729127797996,1.62151,2621.4,2621.3,1.32994456]
[1729127798205,1.24,2621.4,2621.3,1.32994456]
[1729127798496,1.62149,2621.4,2621.3,1.71144456]
[1729127798698,1.62149,2621.4,2621.3,2.82938237]
[1729127798998,1.62149,2621.4,2621.2,2.27084781]
[1729127798999,1.24,2621.4,2621.2,2.27084781]
[1729127799296,1.24,2621.3,2621.2,0.77141]
[1729127799895,1.24,2621.3,2621.2,0.3899]
[1729127800200,1.24,2621.3,2620.9,3.2078]
[1729127800405,1.24,2621.0,2620.9,3.97926]
[1729127800898,1.24,2621.0,2620.9,4.40456]
[1729127801605,1.24,2621.0,2620.9,1.19676]
[1729127802198,0.3954,2621.1,2620.9,1.19676]
[1729127802199,2.01693,2621.1,2620.9,0.8152]
[1729127802498,2.01693,2621.1,2621.0,0.38155]
[1729127805708,0.3954,2621.1,2621.0,1.62155]
[1729127806507,0.3954,2621.1,2621.0,7.6107467]
[1729127806702,0.77693,2621.1,2621.0,7.6107467]
[1729127807201,2.01693,2621.1,2621.0,3.71078251]
[1729127807403,2.44323,2621.1,2621.0,1.71153209]
[1729127808099,2.44323,2621.1,2621.0,2.82977139]
[1729127808306,5.8769,2621.1,2620.9,1.4997893]
[1729127808501,0.38156,2620.9,2620.8,1.8813693]
[1729127808709,1.62156,2620.9,2620.8,3.21151306]
[1729127811294,1.24,2620.9,2620.8,3.21142705]
[1729127811498,2.04725,2621.0,2620.9,0.38156]
[1729127811804,2.04725,2621.0,2620.9,3.21139005]
[1729127812407,1.62155,2621.0,2620.9,1.71161775]
[1729127812607,1.62155,2621.0,2620.9,1.33005775]
[1729127813009,1.62155,2621.0,2620.9,1.71161775]
[1729127813511,1.62155,2621.0,2620.9,1.75245775]
[1729127813703,1.62155,2621.0,2620.9,2.13401775]
[1729127814212,1.62155,2621.0,2620.9,1.75245775]
[1729127814707,1.62155,2621.0,2620.9,2.13401775]
[1729127814903,1.62155,2621.0,2620.9,1.75245775]
[1729127815611,1.62155,2621.0,2620.9,1.75253718]
[1729127815808,1.62155,2621.0,2620.9,0.4224]
[1729127817111,1.62155,2621.0,2620.9,1.75254648]
[1729127817413,1.62155,2621.0,2620.9,2.13410648]
[1729127818019,1.24,2621.3,2620.9,2.99254648]
[1729127818311,2.309,2621.3,2621.2,1.8812823]
[1729127818511,2.309,2621.3,2621.2,1.71165648]
[1729127818898,2.6905,2621.3,2621.2,1.71165648]
[1729127819907,2.309,2621.3,2621.2,1.71165648]
[1729127820409,2.0454,2621.4,2621.2,2.95165648]
[1729127820610,2.0454,2621.4,2621.3,3.21194338]
[1729127820811,1.6215,2621.4,2621.3,3.61174338]
[1729127821007,1.24,2621.5,2621.4,0.38148]
[1729127821220,1.24,2621.5,2621.4,3.25690112]
[1729127821507,1.24,2621.5,2621.4,0.80799]
[1729127821508,1.62148,2621.5,2621.4,0.80799]
[1729127823216,1.24,2621.5,2621.4,0.80799]
[1729127823415,1.62148,2621.5,2621.4,0.80799]
[1729127824412,1.24,2621.5,2621.4,0.80799]
[1729127826613,1.62148,2621.5,2621.4,0.80799]
[1729127826813,1.24,2621.5,2621.4,0.80799]
[1729127827006,0.79527,2621.6,2621.4,0.4265]
[1729127827208,0.79527,2621.6,2621.4,1.6665]
[1729127827209,1.24,2621.6,2621.4,1.6665]
[1729127827513,1.24,2621.5,2621.4,4.8743]
[1729127827714,1.24,2621.5,2621.4,5.25579]
[1729127828511,1.24,2621.5,2621.4,3.37732281]
[1729127828705,1.24,2621.5,2621.4,4.87624801]
[1729127828910,1.24,2621.5,2621.4,3.37732281]
[1729127829115,1.24,2621.5,2621.4,3.37735023]
[1729127829516,1.24,2621.5,2621.4,4.87608551]
[1729127829712,1.24,2621.5,2621.4,6.58515023]
[1729127829917,1.24,2621.5,2621.4,5.25579]
[1729127830113,1.24,2621.5,2621.4,6.58495826]
[1729127830715,0.3991,2621.8,2621.4,10.97159826]
[1729127830907,1.6442,2622.0,2621.9,0.38142]
[1729127831112,3.58918,2622.2,2622.1,0.38139]
[1729127831310,3.58918,2622.2,2622.0,0.4206]
[1729127831311,4.4478,2622.2,2622.0,0.4206]
[1729127831513,1.62139,2622.1,2622.0,0.4206]
[1729127831717,1.62139,2622.1,2622.0,0.802]
[1729127832105,1.62139,2622.1,2622.0,0.4206]
[1729127833524,2.01599,2622.1,2622.0,0.4206]
[1729127834018,0.95351,2622.0,2621.6,1.49841302]
[1729127834230,2.48,2621.7,2621.4,1.89801302]
[1729127834527,0.38149,2621.4,2621.3,3.2078]
[1729127834821,1.24,2621.4,2621.0,0.8134]
[1729127835023,1.24,2621.2,2621.1,0.38152]
[1729127835222,1.24,2621.2,2621.1,1.7095243]
[1729127835517,1.24,2621.2,2621.1,0.38152]
[1729127835921,0.77601,2621.3,2621.2,0.38152]
[1729127835922,1.24,2621.3,2621.2,0.38152]
[1729127836117,41.1945,2621.5,2621.2,1.24]
[1729127836318,1.62149,2621.4,2621.3,0.3815]
[1729127837726,1.24,2621.4,2621.3,0.3815]
[1729127838026,1.62149,2621.4,2621.3,0.3815]
[1729127840025,1.24,2621.4,2621.3,0.3815]
[1729127840525,1.62149,2621.4,2621.3,0.3815]
[1729127841430,1.24,2621.4,2621.3,0.3815]
[1729127842714,1.62149,2621.4,2621.3,0.3815]
[1729127843520,1.24,2621.4,2621.3,0.3815]
[1729127845524,1.24,2621.4,2621.3,1.71015993]
[1729127845728,1.24,2621.4,2621.3,2.56868999]
[1729127846020,1.068,2621.7,2621.3,4.06599173]
[1729127846221,1.068,2621.7,2621.6,0.38145]
[1729127846222,1.24,2621.7,2621.6,0.38145]
[1729127846420,0.38146,2621.6,2621.5,1.87877174]
[1729127846625,1.24,2621.6,2621.5,0.38147]
[1729127847226,1.62147,2621.6,2621.5,0.38148]
[1729127848734,0.38148,2621.5,2621.3,2.73730174]
[1729127848920,1.24,2621.5,2621.4,1.70766205]
[1729127849329,1.24,2621.5,2621.3,2.73730174]
[1729127849528,1.24,2621.4,2621.2,2.30860174]
[1729127849834,1.24,2621.4,2621.2,1.87881174]
[1729127849835,2.01291,2621.3,2621.2,1.87881174]
[1729127850034,2.01291,2621.3,2621.2,1.32625907]
[1729127850231,0.38152,2621.2,2621.1,5.08662174]
[1729127850531,0.38152,2621.2,2621.1,6.41290264]
[1729127851626,1.62152,2621.2,2621.1,6.03138264]
[1729127851827,5.43672,2621.2,2621.1,3.2078]
[1729127852129,0.38155,2621.0,2620.9,0.9988424]
[1729127852336,1.62155,2621.0,2620.9,0.9988424]
[1729127853033,1.62155,2621.0,2620.9,2.32517961]
[1729127853330,1.62155,2621.0,2620.9,2.32513879]
[1729127853531,1.62155,2621.0,2620.9,2.32514579]
[1729127855037,1.62155,2621.0,2620.9,2.94786339]
[1729127855934,1.62155,2621.0,2620.9,2.56630339]
[1729127856233,1.62155,2621.0,2620.9,4.44516513]
[1729127856630,1.62155,2621.0,2620.9,4.06360513]
[1729127858233,1.62155,2621.0,2620.9,4.44516513]
[1729127858726,1.62155,2621.0,2620.9,0.99899875]
[1729127858927,0.38156,2620.9,2620.8,0.99899875]
[1729127859131,1.62156,2620.9,2620.8,1.38057875]
[1729127859337,0.38156,2620.9,2620.8,2.70719381]
[1729127859536,0.38156,2620.9,2620.8,1.38057875]
[1729127859836,1.62156,2620.9,2620.8,0.99899875]
[1729127860037,14.6836,2620.9,2620.5,0.99899875]
[1729127860234,1.24,2620.6,2620.4,1.42859875]
[1729127860434,1.24,2620.5,2620.3,1.24]
[1729127860737,1.36427,2620.8,2620.3,2.62063875]
[1729127860738,1.62164,2620.4,2620.3,2.62063875]
[1729127860931,1.62164,2620.4,2620.3,2.23899875]
[1729127861127,1.62164,2620.4,2620.3,1.62165]
[1729127861339,1.62164,2620.4,2620.3,1.24]
[1729127862130,0.38165,2620.3,2620.2,0.8266]
[1729127862445,0.38169,2620.1,2619.9,4.20679875]
[1729127862740,1.24,2620.1,2620.0,1.62168]
[1729127863041,1.24,2620.1,2620.0,0.38168]
[1729127863848,0.80617,2620.2,2620.1,0.38168]
[1729127865341,0.4245,2620.2,2620.1,0.38168]
[1729127865642,1.556,2620.3,2619.9,3.2078]
[1729127865845,0.38167,2620.2,2620.1,0.38167]
[1729127867041,1.556,2620.3,2619.9,4.20679875]
[1729127867239,0.416,2620.3,2620.2,0.38166]
[1729127867842,1.14,2620.4,2620.0,0.4153]
[1729127868044,1.14,2620.4,2620.3,0.38165]
[1729127868045,1.52164,2620.4,2620.3,0.38165]
[1729127868747,1.94914,2620.4,2620.3,0.38165]
[1729127869246,1.94914,2620.4,2620.2,0.38165]
[1729127869552,0.38165,2620.3,2620.2,0.38166]
[1729127870144,1.94915,2620.4,2620.1,0.38168]
[1729127870351,1.94915,2620.4,2620.0,0.4153]
[1729127870352,1.5675,2620.4,2620.0,0.4153]
[1729127870641,0.38166,2620.3,2620.2,0.38166]
[1729127871050,0.4275,2620.4,2620.0,0.4153]
[1729127871242,0.38166,2620.3,2620.2,0.38166]
[1729127874548,0.38166,2620.2,2620.1,0.38167]
[1729127875458,0.4275,2620.4,2620.0,0.4153]
[1729127875754,0.38165,2620.3,2620.2,0.38165]
[1729127876256,0.4275,2620.4,2620.0,0.4153]
[1729127876257,0.38167,2620.2,2620.1,0.38167]
[1729127878558,0.4275,2620.4,2620.0,0.4153]
[1729127878854,0.38165,2620.3,2620.2,0.38165]
[1729127880455,0.38167,2620.2,2620.1,0.38167]
[1729127881051,0.4275,2620.4,2620.0,0.4153]
[1729127881052,0.38165,2620.3,2620.2,0.38165]
[1729127881453,0.4275,2620.4,2620.0,0.4153]
[1729127881655,0.38167,2620.2,2620.1,0.38167]
[1729127883059,0.4275,2620.4,2620.1,0.38167]
[1729127883060,0.38165,2620.3,2620.1,0.38166]
[1729127883252,0.38166,2620.2,2620.1,0.38167]
[1729127883457,0.80915,2620.4,2620.3,0.38165]
[1729127883653,1.141,2620.5,2620.0,4.09429875]
[1729127883851,3.63391,2621.0,2620.4,5.6878]
[1729127883852,1.24,2621.0,2620.4,5.6878]
[1729127884152,1.24,2621.3,2620.9,1.24]
[1729127884352,1.62151,2621.3,2621.2,1.24]
[1729127884655,0.38152,2621.2,2621.0,2.45194]
[1729127884853,1.24,2621.1,2621.0,2.45194]
[1729127886450,1.62153,2621.1,2621.0,1.665]
[1729127886650,1.24,2621.1,2620.8,3.2078]
[1729127886855,1.62155,2621.0,2620.8,4.4478]
[1729127887164,1.62155,2621.0,2620.8,4.82937]
[1729127887758,0.38156,2620.9,2620.8,4.82937]
[1729127888561,0.38156,2620.9,2620.8,1.62157]
[1729127893464,0.38156,2621.0,2620.9,0.38156]
[1729127893765,1.62156,2621.0,2620.9,0.38156]
[1729127895860,4.3826,2621.5,2620.9,1.24]
[1729127896062,1.24,2621.4,2621.2,1.24]
[1729127896261,0.38149,2621.4,2621.3,0.7806]
[1729127896457,1.62149,2621.4,2621.3,0.3991]
[1729127896670,1.62149,2621.4,2621.3,0.7806]
[1729127898257,1.62149,2621.4,2621.3,0.3991]
[1729127898459,1.62149,2621.4,2621.0,4.70510174]
[1729127898460,0.38153,2621.1,2621.0,4.20679875]
[1729127898667,1.62153,2621.1,2621.0,3.2078]
[1729127899265,2.41133,2621.1,2621.0,3.2078]
[1729127899665,12.22653,2621.1,2621.0,3.2078]
[1729127899967,6.22653,2621.1,2621.0,3.2078]
[1729127900167,3.54033,2621.1,2621.0,3.2078]
[1729127900560,7.35553,2621.1,2621.0,3.2078]
[1729127901067,6.974,2621.1,2620.8,0.38156]
[1729127901264,6.974,2621.1,2620.7,2.64499875]
[1729127901265,1.24,2620.9,2620.7,2.64499875]
[1729127901465,1.24,2620.9,2620.8,0.38158]
[1729127901766,1.62156,2620.9,2620.8,0.38158]
[1729127902465,1.24,2620.9,2620.8,0.38158]
[1729127902870,1.62157,2620.9,2620.8,0.38158]
[1729127903270,1.24,2620.9,2620.8,0.38158]
[1729127903458,1.62156,2620.9,2620.8,0.38158]
[1729127905371,0.38158,2620.8,2620.7,0.78759]
[1729127905669,1.24,2620.9,2620.7,0.78759]
[1729127905866,1.24,2620.8,2620.7,0.78759]
[1729127907374,1.62158,2620.8,2620.7,0.78759]
[1729127909368,1.62158,2620.8,2620.7,3.99539]
[1729127909671,1.62158,2620.8,2620.7,4.99438875]
[1729127909870,0.38158,2620.8,2620.7,3.02658875]
[1729127910481,0.38157,2620.9,2620.8,0.38157]
[1729127910868,1.62156,2621.0,2620.9,0.38156]
[1729127911271,1.62156,2621.0,2620.9,0.79086]
[1729127911779,1.62156,2621.0,2620.9,0.4093]
[1729127911970,1.62156,2621.0,2620.9,0.79086]
[1729127915976,1.129,2621.2,2620.9,1.6493]
[1729127916172,1.24,2621.2,2621.1,0.38153]
[1729127916477,1.62152,2621.2,2621.1,7.40453]
[1729127916672,1.62152,2621.2,2621.1,3.6062]
[1729127916877,0.38155,2621.0,2620.9,0.4093]
[1729127917084,1.62155,2621.0,2620.9,0.4093]
[1729127917481,2.04205,2621.0,2620.9,0.4093]
[1729127919181,2.04205,2621.0,2620.9,1.40829875]
[1729127922372,2.04205,2621.0,2620.9,1.78985875]
[1729127922579,2.04205,2621.0,2620.9,1.40829875]
[1729127924077,2.04205,2621.0,2620.9,3.11515586]
[1729127924276,2.04205,2621.0,2620.9,2.73359586]
[1729127925287,2.04205,2621.0,2620.9,3.23189885]
[1729127926096,2.04205,2621.0,2620.9,0.4093]
[1729127926990,2.04205,2621.0,2620.9,0.79086]
[1729127927187,2.04205,2621.0,2620.9,1.79063374]
[1729127927398,2.04205,2621.0,2620.9,0.4093]
[1729127927604,2.04205,2621.0,2620.9,1.40907374]
[1729127928298,2.04205,2621.0,2620.9,1.79063374]
[1729127928505,2.04205,2621.0,2620.9,3.11762231]
[1729127928802,2.04205,2621.0,2620.9,1.73626954]
[1729127928996,2.04205,2621.0,2620.9,1.73626366]
[1729127929202,2.04205,2621.0,2620.9,2.73678323]
[1729127929600,2.04205,2621.0,2620.9,3.2335654]
[1729127929801,2.04205,2621.0,2620.9,3.6151254]
[1729127930102,2.04205,2621.0,2620.9,3.2335654]
[1729127931103,2.04205,2621.0,2620.9,3.6151254]
[1729127931903,2.04205,2621.0,2620.9,3.2335654]
[1729127932095,1.6605,2621.0,2620.9,1.00121988]
[1729127932296,0.38156,2620.9,2620.8,1.00121988]
[1729127932497,0.38158,2620.8,2620.7,1.00121988]
[1729127932693,1.62158,2620.8,2620.7,1.00121988]
[1729127934202,1.62158,2620.8,2620.7,2.32881604]
[1729127934499,0.38159,2620.7,2620.6,1.00112768]
[1729127934704,0.38162,2620.5,2620.4,1.00112768]
[1729127934897,2.76362,2620.5,2620.4,1.00100132]
[1729127935497,2.76362,2620.5,2620.3,1.00100132]
[1729127935498,2.382,2620.5,2620.3,1.00100132]
[1729127935808,1.62164,2620.4,2620.3,1.00100132]
[1729127936201,2.382,2620.4,2620.3,3.20589456]
[1729127936503,2.382,2620.4,2620.3,2.13479282]
[1729127936701,2.76364,2620.4,2620.3,2.13479282]
[1729127937006,2.76364,2620.4,2620.3,3.63525305]
[1729127937206,1.52364,2620.4,2620.3,2.13479282]
[1729127937508,2.76364,2620.4,2620.3,3.63498574]
[1729127937698,2.76364,2620.4,2620.3,2.13479282]
[1729127937699,1.24,2620.4,2620.3,2.13479282]
[1729127938203,1.62164,2620.4,2620.3,4.13404324]
[1729127938593,1.62164,2620.4,2620.3,2.13479282]
[1729127938803,1.24,2620.4,2620.3,2.13479282]
[1729127939002,3.2031,2620.6,2620.5,0.38162]
[1729127939202,2.382,2620.6,2620.5,4.448605]
[1729127939596,2.382,2620.6,2620.5,3.208605]
[1729127939991,3.6097,2620.8,2620.5,4.448605]
[1729127940203,5.13329,2620.8,2620.7,0.99995931]
[1729127940406,5.13329,2620.8,2620.7,2.32690213]
[1729127940800,5.13329,2620.8,2620.7,0.99995931]
[1729127941198,5.13329,2620.8,2620.4,2.78008042]
[1729127941199,0.38161,2620.6,2620.5,0.99995931]
[1729127941402,1.62161,2620.6,2620.5,0.99995931]
[1729127942214,1.62161,2620.6,2620.5,2.32598651]
[1729127942503,1.62161,2620.6,2620.5,0.99995931]
[1729127943109,1.62161,2620.6,2620.5,2.32600387]
[1729127944508,1.62161,2620.6,2620.5,1.32604456]
[1729127945202,1.62161,2620.6,2620.5,2.82608674]
[1729127947410,1.62161,2620.6,2620.5,3.20770674]
[1729127949220,1.62161,2620.6,2620.5,0.38162]
[1729127949417,0.38162,2620.5,2620.4,1.7806709]
[1729127949618,1.62162,2620.5,2620.4,1.7806709]
[1729127949807,2.02202,2620.5,2620.4,1.7806709]
[1729127950622,7.07802,2620.5,2620.4,0.9998409]
[1729127950915,5.4564,2620.5,2620.1,3.2078]
[1729127951220,1.52364,2620.4,2620.3,0.38165]
[1729127952019,2.76364,2620.4,2620.3,0.38165]
[1729127952822,1.62164,2620.4,2620.3,0.38165]
[1729127953024,2.72264,2620.4,2620.3,0.38165]
[1729127953622,2.72264,2620.4,2620.3,0.77055]
[1729127954613,2.72264,2620.4,2620.3,0.3889]
[1729127955214,1.62164,2620.4,2620.3,0.3889]
[1729127955414,2.72264,2620.4,2620.3,0.3889]
[1729127956324,0.38166,2620.2,2620.1,3.2078]
[1729127956621,1.62166,2620.2,2620.1,3.58948]
[1729127956815,1.62166,2620.2,2620.1,3.2078]
[1729127957017,0.38171,2619.9,2619.8,0.9998409]
[1729127957211,0.38171,2619.9,2619.7,0.38173]
[1729127957212,0.38172,2619.8,2619.7,1.8362409]
[1729127957412,1.24,2619.8,2619.7,3.54307839]
[1729127957617,1.6217,2620.0,2619.9,0.38171]
[1729127957823,1.24,2620.0,2619.9,1.38091168]
[1729127958325,1.62169,2620.0,2619.9,1.38091168]
[1729127959122,1.24,2620.0,2619.9,1.38091168]
[1729127959535,1.62169,2620.0,2619.9,1.38091168]
[1729127960329,1.62169,2620.0,2619.9,0.38171]
[1729127960528,1.62169,2620.0,2619.9,1.38091168]
[1729127960728,1.62169,2620.0,2619.9,0.38171]
[1729127961031,1.62169,2620.0,2619.9,1.38091168]
[1729127962723,1.62169,2620.0,2619.9,0.38171]
[1729127962926,0.38171,2619.9,2619.8,1.38091168]
[1729127963127,1.24,2619.9,2619.8,1.38091168]
[1729127963328,1.62171,2619.9,2619.8,1.38091168]
[1729127963533,1.62171,2619.9,2619.8,0.38171]
[1729127963727,1.62171,2619.9,2619.8,1.38091168]
[1729127964628,0.38172,2619.8,2619.7,1.83560168]
[1729127964830,1.6369,2619.8,2619.6,4.20700168]
[1729127965033,1.62174,2619.7,2619.6,4.20700168]
[1729127965828,1.04866378,2619.7,2619.6,4.20700168]
[1729127966725,1.04866378,2619.7,2619.6,0.99920168]
[1729127967926,1.45956378,2619.7,2619.6,0.99920168]
[1729127968734,1.45956378,2619.7,2619.6,1.38095168]
[1729127968932,1.45956378,2619.7,2619.6,2.62095168]
[1729127969133,1.45956378,2619.7,2619.6,2.70256431]
[1729127969335,1.45956378,2619.7,2619.6,2.70175721]
[1729127969534,1.62171,2619.9,2619.8,0.3817]
[1729127969732,1.24,2619.9,2619.8,1.38003697]
[1729127970039,1.62171,2619.9,2619.8,1.38003697]
[1729127970231,1.62171,2619.9,2619.8,2.19113697]
[1729127972438,1.4827,2620.0,2619.8,2.19113697]
[1729127972736,1.4827,2620.0,2619.9,1.38004697]
[1729127972737,2.341,2620.0,2619.9,1.38004697]
[1729127972941,2.72269,2620.0,2619.9,1.38004697]
[1729127973136,2.72269,2620.0,2619.9,0.38171]
[1729127973337,2.72269,2620.0,2619.9,1.38004697]
[1729127974233,1.62169,2620.0,2619.9,1.38004697]
[1729127974733,0.41,2620.1,2619.9,0.99833697]
[1729127974928,1.62169,2620.0,2619.9,1.38003697]
[1729127975337,1.24,2620.0,2619.9,1.38003697]
[1729127975544,1.24,2620.0,2619.9,1.70409402]
[1729127976236,1.24,2620.0,2619.9,2.70307317]
[1729127976544,1.62169,2620.0,2619.9,3.2041362]
[1729127976737,1.62169,2620.0,2619.9,2.70330449]
[1729127977041,0.4047,2620.2,2619.9,7.8792362]
[1729127977342,1.101,2620.3,2620.2,0.38166]
[1729127977545,40.8,2620.6,2620.2,3.23844237]
[1729127977841,1.101,2620.8,2620.5,1.49899405]
[1729127978140,0.3816,2620.7,2620.6,1.41465931]
[1729127978442,1.6216,2620.7,2620.6,2.73756639]
[1729127978939,1.101,2620.8,2620.7,0.38159]
[1729127979131,0.4083,2620.9,2620.7,2.32215275]
[1729127979330,1.5286,2621.0,2620.8,2.32208282]
[1729127979535,1.91016,2621.0,2620.8,0.38157]
[1729127980035,1.91016,2621.0,2620.8,0.99924567]
[1729127980237,1.62156,2620.9,2620.8,1.38081567]
[1729127980437,1.24,2620.9,2620.8,0.38157]
[1729127981340,1.62156,2620.9,2620.8,0.38157]
[1729127982052,1.62156,2620.9,2620.7,1.38082567]
[1729127982246,1.24,2620.8,2620.7,1.38082567]
[1729127982643,1.24,2620.8,2620.7,0.38158]
[1729127982845,1.24,2620.8,2620.7,1.38082567]
[1729127983045,1.24,2620.8,2620.7,0.38158]
[1729127986048,1.24,2620.8,2620.7,1.24]
[1729127986247,1.24,2620.8,2620.7,2.62083567]
[1729127986443,1.24,2620.8,2620.7,1.62159]
[1729127986949,1.62151,2621.3,2621.1,0.38153]
[1729127987150,0.3815,2621.3,2621.2,1.24]
[1729127987350,1.6215,2621.3,2621.2,0.4286]
[1729127991261,42.54084662,2621.5,2621.3,0.3815]
[1729127991262,42.32248,2621.5,2621.3,0.3815]
[1729127991452,1.24,2621.4,2621.3,1.6215]
[1729127991650,1.62149,2621.4,2621.3,0.3815]
[1729127992056,1.24,2621.4,2621.3,0.3815]
[1729127993052,1.62149,2621.4,2621.3,0.3815]
[1729127995362,1.62149,2621.4,2621.2,2.0501]
[1729127995552,1.24,2621.3,2621.2,2.0501]
[1729127997967,1.24,2621.3,2621.2,2.4659]
[1729127998853,1.6215,2621.3,2621.2,2.4659]
[1729128000270,0.3815,2621.3,2621.2,2.4659]
[1729128000661,1.6479,2621.4,2621.2,2.4659]
[1729128000962,2.0294,2621.4,2621.3,0.3815]
[1729128001358,3.6085,2621.7,2621.3,1.24]
[1729128001559,1.62147,2621.6,2621.5,1.62147]
[1729128001759,1.24,2621.6,2621.5,1.62147]
[1729128001961,1.62146,2621.6,2621.5,1.62147]
[1729128002159,1.24,2621.6,2621.5,1.62147]
[1729128002561,9.548,2622.3,2621.5,1.24]
[1729128002763,2.0389,2622.1,2622.0,1.24]
[1729128002957,0.38141,2622.0,2621.9,1.62141]
[1729128003368,0.38141,2622.0,2621.9,5.0536]
[1729128003668,0.38141,2622.0,2621.9,5.43502]
[1729128003971,0.38141,2622.0,2621.9,5.0536]
[1729128004168,1.6575,2622.1,2621.9,5.0536]
[1729128004169,0.4175,2622.1,2621.9,5.0536]
[1729128004464,1.24,2622.2,2622.0,1.24]
[1729128004670,1.62139,2622.1,2622.0,1.24]
[1729128005064,1.24,2622.1,2622.0,1.24]
[1729128005270,1.24,2622.1,2622.0,1.6214]
[1729128005867,1.62138,2622.2,2622.0,1.6214]
[1729128006168,1.24,2622.1,2621.9,1.24]
[1729128006371,0.835,2622.3,2621.8,2.02282]
[1729128006372,1.24,2621.9,2621.8,2.02282]
[1729128006567,1.24,2621.9,2621.7,3.2078]
[1729128006773,2.46883,2621.8,2621.7,3.2078]
[1729128007171,2.0874,2621.8,2621.5,0.4198]
[1729128007386,0.38148,2621.5,2621.4,3.2078]
[1729128007675,1.62148,2621.5,2621.4,3.2078]
[1729128008172,1.24,2621.5,2621.2,1.24]
[1729128008373,1.6215,2621.3,2621.2,1.24]
[1729128008576,1.6215,2621.3,2621.2,1.62152]
[1729128008873,1.6215,2621.3,2621.2,1.24]
[1729128009773,0.3815,2621.3,2621.1,3.6276]
[1729128009972,0.38151,2621.3,2621.2,0.38151]
[1729128010180,1.2186,2621.4,2621.3,0.3815]
[1729128010373,0.38152,2621.3,2621.2,0.38151]
[1729128011477,0.38152,2621.3,2621.2,4.19671]
[1729128011672,0.38152,2621.3,2621.2,0.38151]
[1729128013582,1.21859,2621.4,2621.3,0.3815]
[1729128013775,0.38152,2621.3,2621.2,0.38151]
[1729128014175,0.38152,2621.3,2621.2,4.19671]
[1729128015176,0.38152,2621.3,2621.2,0.38151]
[1729128015376,0.8371,2621.4,2621.1,3.6276]
[1729128015579,1.21859,2621.4,2621.3,0.3815]
[1729128015878,0.38144,2621.8,2621.7,0.38143]
[1729128016068,0.824,2622.2,2621.7,3.2078]
[1729128016375,0.38142,2621.9,2621.8,0.79132]
[1729128016681,0.38141,2622.0,2621.9,0.38142]
[1729128017373,0.38142,2621.9,2621.8,1.17913]
[1729128017573,1.2487,2622.2,2621.8,1.17912]
[1729128017574,0.38141,2622.0,2621.8,1.17912]
[1729128017777,0.38141,2622.0,2621.9,0.38142]
[1729128018368,0.38141,2622.0,2621.8,1.17912]
[1729128021382,0.38143,2621.8,2621.7,3.58924]
[1729128021676,0.38143,2621.8,2621.7,3.2078]
[1729128021876,0.38147,2621.6,2621.4,0.38148]
[1729128022180,0.3815,2621.3,2621.2,4.0425]
[1729128022375,0.4082,2621.5,2621.2,4.42402]
[1729128022774,0.3815,2621.4,2621.3,0.3815]
[1729128023078,0.3815,2621.3,2621.2,4.42401]
[1729128023277,0.4082,2621.5,2621.2,4.42401]